fUSD/lending_fUSD_20241230
["ID","MTS","AMOUNT","RATE_DAILY","PERIOD"]
[347183858,1735554641275,-1605.7,0.00013698,2]
[347183859,1735554641285,-500.0,0.00013698,2]
[347183860,1735554641295,-1347.41,0.00013698,2]
[347183861,1735554641304,-500.0,0.00013698,2]
[347183862,1735554641313,-740.98,0.00013698,2]
[347183863,1735554641322,-500.0,0.00013698,2]
[347183864,1735554641331,-500.0,0.00013698,2]
[347183865,1735554641340,-500.0,0.00013698,2]
[347183866,1735554641350,-505.09145509,0.00013698,2]
[347183867,1735554641359,-1010.13,0.00013698,2]
[347183868,1735554641367,-500.0,0.00013698,2]
[347183869,1735554641376,-500.0,0.00013698,2]
[347183870,1735554641386,-500.0,0.00013698,2]
[347183871,1735554641395,-732.49,0.00013698,2]
[347183872,1735554641404,-500.0,0.00013698,2]
[347183873,1735554641414,-500.0,0.00013698,2]
[347183874,1735554641423,-500.0,0.00013698,2]
[347183875,1735554641432,-500.0,0.00013698,2]
[347183876,1735554641442,-500.0,0.00013698,2]
[347183877,1735554641451,-500.0,0.00013698,2]
[347183878,1735554641460,-500.0,0.00013698,2]
[347183879,1735554641469,-738.14,0.00013698,2]
[347183880,1735554641479,-504.13128552,0.00013698,2]
[347183881,1735554641487,-381.98560848,0.00013698,2]
[347183882,1735554641496,-500.0,0.00013698,2]
[347183883,1735554641505,-709.32,0.00013698,2]
[347183884,1735554641514,-1055.18,0.00013698,2]
[347183885,1735554641523,-4031.59,0.00013698,2]
[347183886,1735554641532,-1396.55,0.00013698,2]
[347183887,1735554641541,-2517.56,0.00013698,2]
[347183888,1735554641550,-500.0,0.00013698,2]
[347183889,1735554641559,-500.0,0.00013698,2]
[347183890,1735554641568,-500.0,0.00013698,2]
[347183891,1735554641577,-1255.43,0.00013698,2]
[347183892,1735554641587,-500.0,0.00013698,2]
[347183893,1735554641595,-502.90864533,0.00013698,2]
[347183894,1735554641607,-1693.33,0.00013698,2]
[347183895,1735554641615,-1279.84,0.00013698,2]
[347183896,1735554641625,-500.0,0.00013698,2]
[347183897,1735554641634,-647.45,0.00013698,2]
[347183898,1735554641643,-577.79,0.00013698,2]
[347183899,1735554641651,-500.0,0.00013698,2]
[347183900,1735554641660,-1741.51,0.00013698,2]
[347183901,1735554641669,-500.0,0.00013698,2]
[347183902,1735554641678,-942.55,0.00013698,2]
[347183903,1735554641687,-899.5,0.00013698,2]
[347183904,1735554641697,-500.0,0.00013698,2]
[347183905,1735554641706,-500.0,0.00013698,2]
[347183906,1735554641715,-500.0,0.00013698,2]
[347183907,1735554641724,-500.0,0.00013698,2]
[347183908,1735554641733,-500.0,0.00013698,2]
[347183909,1735554641743,-500.0,0.00013698,2]
[347183910,1735554641751,-971.2,0.00013698,2]
[347183911,1735554641761,-852.09,0.00013698,2]
[347183912,1735554641770,-500.0,0.00013698,2]
[347183913,1735554641779,-500.0,0.00013698,2]
[347183914,1735554641788,-526.98,0.00013698,2]
[347183915,1735554641798,-1602.37,0.00013698,2]
[347183916,1735554641807,-500.0,0.00013698,2]
[347183917,1735554641816,-500.0,0.00013698,2]
[347183918,1735554641826,-1168.41,0.00013698,2]
[347183919,1735554641835,-718.04,0.00013698,2]
[347183920,1735554641844,-500.97,0.00013698,2]
[347183921,1735554641853,-520.46,0.00013698,2]
[347183922,1735554641862,-500.0,0.00013698,2]
[347183923,1735554641871,-500.0,0.00013698,2]
[347183924,1735554641880,-500.0,0.00013698,2]
[347183925,1735554641889,-500.0,0.00013698,2]
[347183926,1735554641900,-500.0,0.00013698,2]
[347183927,1735554641910,-1610.98,0.00013698,2]
[347183928,1735554641919,-522.32,0.00013698,2]
[347183929,1735554641928,-500.0,0.00013698,2]
[347183930,1735554641937,-509.16444022,0.00013698,2]
[347183931,1735554641947,-500.0,0.00013698,2]
[347183932,1735554641956,-829.69,0.00013698,2]
[347183933,1735554641966,-500.0,0.00013698,2]
[347183934,1735554641976,-592.14,0.00013698,2]
[347183935,1735554641985,-500.0,0.00013698,2]
[347183936,1735554641994,-500.0,0.00013698,2]
[347183937,1735554642004,-500.0,0.00013698,2]
[347183938,1735554642014,-743.74,0.00013698,2]
[347183939,1735554642023,-822.9,0.00013698,2]
[347183940,1735554642032,-500.0,0.00013698,2]
[347183941,1735554642042,-500.0,0.00013698,2]
[347183942,1735554642051,-500.0,0.00013698,2]
[347183943,1735554642060,-500.0,0.00013698,2]
[347183944,1735554642070,-500.0,0.00013698,2]
[347183945,1735554642079,-504.1026674,0.00013698,2]
[347183946,1735554642088,-500.0,0.00013698,2]
[347183947,1735554642102,-500.0,0.00013698,2]
[347183948,1735554642111,-500.0,0.00013698,2]
[347183949,1735554642120,-500.0,0.00013698,2]
[347183950,1735554642129,-500.0,0.00013698,2]
[347183951,1735554642138,-961.28,0.00013698,2]
[347183952,1735554642147,-500.0,0.00013698,2]
[347183953,1735554642157,-500.0,0.00013698,2]
[347183954,1735554642166,-1300.51,0.00013698,2]
[347183955,1735554642175,-1211.16,0.00013698,2]
[347183956,1735554642184,-1306.13,0.00013698,2]
[347183957,1735554642194,-500.0,0.00013698,2]
[347183958,1735554642203,-500.0,0.00013698,2]
[347183959,1735554642212,-500.0,0.00013698,2]
[347183960,1735554642221,-488.55879446,0.00013698,2]
[347183961,1735554642231,-540.15198485,0.00013698,2]
[347183962,1735554642240,-500.0,0.00013698,2]
[347183963,1735554642249,-500.0,0.00013698,2]
[347183964,1735554642259,-644.72,0.00013698,2]
[347183965,1735554642268,-507.58,0.00013698,2]
[347183966,1735554642278,-500.0,0.00013698,2]
[347183967,1735554642287,-1716.07,0.00013698,2]
[347183968,1735554642297,-500.0,0.00013698,2]
[347183969,1735554642306,-685.33,0.00013698,2]
[347183970,1735554642316,-501.62908818,0.00013698,2]
[347183971,1735554642325,-500.0,0.00013698,2]
[347183972,1735554642335,-500.0,0.00013698,2]
[347183973,1735554642344,-1140.3,0.00013698,2]
[347183975,1735554642353,-1582.78,0.00013698,2]
[347183976,1735554642363,-500.0,0.00013698,2]
[347183977,1735554642372,-1527.24,0.00013698,2]
[347183978,1735554642381,-500.0,0.00013698,2]
[347183980,1735554642391,-1499.25,0.00013698,2]
[347183981,1735554642400,-500.0,0.00013698,2]
[347183982,1735554642409,-1626.34,0.00013698,2]
[347183983,1735554642419,-500.0,0.00013698,2]
[347183984,1735554642428,-799.47,0.00013698,2]
[347183985,1735554642437,-775.88,0.00013698,2]
[347183986,1735554642446,-500.0,0.00013698,2]
[347183987,1735554642456,-500.0,0.00013698,2]
[347183988,1735554642465,-500.0,0.00013698,2]
[347183989,1735554642475,-936.82,0.00013698,2]
[347183990,1735554642484,-518.85144419,0.00013698,2]
[347183991,1735554642494,-789.36,0.00013698,2]
[347183992,1735554642503,-1745.68,0.00013698,2]
[347183993,1735554642512,-747.79,0.00013698,2]
[347183994,1735554642521,-500.0,0.00013698,2]
[347183995,1735554642531,-500.0,0.00013698,2]
[347183996,1735554642540,-608.35,0.00013698,2]
[347183997,1735554642549,-500.0,0.00013698,2]
[347183998,1735554642559,-500.0,0.00013698,2]
[347183999,1735554642568,-500.0,0.00013698,2]
[347184000,1735554642578,-500.0,0.00013698,2]
[347184001,1735554642588,-539.77,0.00013698,2]
[347184002,1735554642597,-500.0,0.00013698,2]
[347184003,1735554642607,-500.0,0.00013698,2]
[347184004,1735554642616,-745.85,0.00013698,2]
[347184005,1735554642625,-500.0,0.00013698,2]
[347184006,1735554642635,-782.89,0.00013698,2]
[347184009,1735554642815,-881.97,0.00013698,2]
[347184010,1735554642826,-500.0,0.00013698,2]
[347184011,1735554642836,-570.91,0.00013698,2]
[347184012,1735554642846,-500.0,0.00013698,2]
[347184013,1735554642855,-500.0,0.00013698,2]
[347184014,1735554642865,-822.0,0.00013698,2]
[347184015,1735554642874,-1033.39,0.00013698,2]
[347184016,1735554642884,-854.9,0.00013698,2]
[347184017,1735554642894,-703.8,0.00013698,2]
[347184018,1735554642903,-500.0,0.00013698,2]
[347184019,1735554642913,-843.64,0.00013698,2]
[347184020,1735554642922,-500.0,0.00013698,2]
[347184021,1735554642932,-502.83110907,0.00013698,2]
[347184022,1735554642941,-500.0,0.00013698,2]
[347184023,1735554642951,-500.0,0.00013698,2]
[347184024,1735554642960,-1660.3,0.00013698,2]
[347184025,1735554642969,-500.0,0.00013698,2]
[347184026,1735554642978,-1063.44,0.00013698,2]
[347184027,1735554642988,-500.0,0.00013698,2]
[347184028,1735554642999,-543.78,0.00013698,2]
[347184029,1735554643008,-503.7808112,0.00013698,2]
[347184030,1735554643018,-440.55928053,0.00013698,2]
[347184031,1735554643027,-702.65,0.00013698,2]
[347184032,1735554643037,-500.0,0.00013698,2]
[347184033,1735554643046,-652.4,0.00013698,2]
[347184034,1735554643057,-1187.1,0.00013698,2]
[347184035,1735554643067,-505.09,0.00013698,2]
[347184036,1735554643077,-829.36,0.00013698,2]
[347184037,1735554643087,-500.0,0.00013698,2]
[347184038,1735554643100,-575.86,0.00013698,2]
[347184039,1735554643112,-500.0,0.00013698,2]
[347184040,1735554643123,-500.0,0.00013698,2]
[347184041,1735554643132,-500.0,0.00013698,2]
[347184042,1735554643142,-906.93,0.00013698,2]
[347184043,1735554643153,-624.19,0.00013698,2]
[347184044,1735554643162,-500.0,0.00013698,2]
[347184045,1735554643172,-500.0,0.00013698,2]
[347184046,1735554643181,-1156.63,0.00013698,2]
[347184048,1735554643191,-713.62,0.00013698,2]
[347184050,1735554643202,-614.22,0.00013698,2]
[347184052,1735554643211,-500.0,0.00013698,2]
[347184054,1735554643221,-537.93,0.00013698,2]
[347184056,1735554643230,-1282.53,0.00013698,2]
[347184058,1735554643239,-500.0,0.00013698,2]
[347184060,1735554643249,-1876.89,0.00013698,2]
[347184062,1735554643258,-789.0,0.00013698,2]
[347184064,1735554643268,-946.81,0.00013698,2]
[347184066,1735554643278,-1388.83,0.00013698,2]
[347184067,1735554643287,-1179.27,0.00013698,2]
[347184068,1735554643297,-1973.96,0.00013698,2]
[347184069,1735554643306,-1045.87,0.00013698,2]
[347184070,1735554643316,-505.47559808,0.00013698,2]
[347184071,1735554643325,-1690.16,0.00013698,2]
[347184072,1735554643335,-1459.4,0.00013698,2]
[347184073,1735554643344,-740.94,0.00013698,2]
[347184074,1735554643354,-1041.91,0.00013698,2]
[347184075,1735554643363,-994.29,0.00013698,2]
[347184076,1735554643372,-645.11,0.00013698,2]
[347184077,1735554643381,-500.0,0.00013698,2]
[347184078,1735554643390,-1167.76,0.00013698,2]
[347184079,1735554643400,-528.4,0.00013698,2]
[347184080,1735554643409,-500.0,0.00013698,2]
[347184081,1735554643419,-500.0,0.00013698,2]
[347184082,1735554643428,-500.0,0.00013698,2]
[347184083,1735554643437,-503.16703275,0.00013698,2]
[347184084,1735554643447,-500.0,0.00013698,2]
[347184085,1735554643456,-500.0,0.00013698,2]
[347184086,1735554643466,-1770.26,0.00013698,2]
[347184087,1735554643475,-1922.14,0.00013698,2]
[347184088,1735554643484,-500.0,0.00013698,2]
[347184089,1735554643494,-2056.26,0.00013698,2]
[347184090,1735554643503,-500.0,0.00013698,2]
[347184091,1735554643512,-2616.4,0.00013698,2]
[347184092,1735554643522,-500.0,0.00013698,2]
[347184093,1735554643531,-830.19,0.00013698,2]
[347184094,1735554643540,-563.78,0.00013698,2]
[347184095,1735554643550,-500.0,0.00013698,2]
[347184096,1735554643559,-933.75,0.00013698,2]
[347184097,1735554643568,-500.0,0.00013698,2]
[347184098,1735554643577,-1862.34,0.00013698,2]
[347184099,1735554643587,-500.0,0.00013698,2]
[347184100,1735554643596,-4223.89,0.00013698,2]
[347184101,1735554643605,-500.0,0.00013698,2]
[347184102,1735554643615,-500.0,0.00013698,2]
[347184103,1735554643624,-500.0,0.00013698,2]
[347184104,1735554643633,-502.34641958,0.00013698,2]
[347184105,1735554643642,-1896.09,0.00013698,2]
[347184106,1735554643651,-500.0,0.00013698,2]
[347184107,1735554643660,-569.33868316,0.00013698,2]
[347184108,1735554643670,-1233.39,0.00013698,2]
[347184109,1735554643679,-500.0,0.00013698,2]
[347184110,1735554643688,-500.0,0.00013698,2]
[347184111,1735554643697,-1415.62,0.00013698,2]
[347184112,1735554643707,-500.0,0.00013698,2]
[347184113,1735554643716,-3114.35,0.00013698,2]
[347184114,1735554643726,-2442.05,0.00013698,2]
[347184115,1735554643735,-848.86,0.00013698,2]
[347184116,1735554643744,-836.45,0.00013698,2]
[347184117,1735554643753,-1119.39,0.00013698,2]
[347184118,1735554643762,-500.0,0.00013698,2]
[347184119,1735554643772,-1000.0,0.00013698,2]
[347184120,1735554643781,-922.12,0.00013698,2]
[347184121,1735554643790,-1004.42,0.00013698,2]
[347184122,1735554643800,-500.0,0.00013698,2]
[347184123,1735554643809,-152.6435899,0.00013698,2]
[347184124,1735554643819,-163.006465,0.00013698,2]
[347184125,1735554643828,-1421.43,0.00013698,2]
[347184126,1735554643838,-642.54,0.00013698,2]
[347184127,1735554643847,-1590.22,0.00013698,2]
[347184128,1735554643856,-5206.57,0.00013698,2]
[347184129,1735554643865,-500.0,0.00013698,2]
[347184130,1735554643875,-500.0,0.00013698,2]
[347184131,1735554643885,-500.0,0.00013698,2]
[347184132,1735554643894,-573.61176812,0.00013698,2]
[347184133,1735554643904,-1027.59,0.00013698,2]
[347184134,1735554643914,-500.0,0.00013698,2]
[347184135,1735554643923,-984.07,0.00013698,2]
[347184136,1735554643933,-17794.2,0.00013698,2]
[347184137,1735554643943,-1269.5,0.00013698,2]
[347184138,1735554643952,-500.0,0.00013698,2]
[347184139,1735554643962,-747.2,0.00013698,2]
[347184140,1735554643971,-895.8,0.00013698,2]
[347184141,1735554643980,-500.0,0.00013698,2]
[347184142,1735554643990,-1186.15,0.00013698,2]
[347184143,1735554644000,-1748.97,0.00013698,2]
[347184144,1735554644010,-2837.22,0.00013698,2]
[347184145,1735554644019,-2119.17,0.00013698,2]
[347184146,1735554644028,-1401.43,0.00013698,2]
[347184147,1735554644037,-500.0,0.00013698,2]
[347184148,1735554644047,-500.0,0.00013698,2]
[347184149,1735554644056,-804.5,0.00013698,2]
[347184150,1735554644066,-2511.83,0.00013698,2]
[347184151,1735554644076,-500.0,0.00013698,2]
[347184152,1735554644085,-895.97,0.00013698,2]
[347184153,1735554644097,-3557.82,0.00013698,2]
[347184154,1735554644105,-519.41,0.00013698,2]
[347184155,1735554644115,-2223.57,0.00013698,2]
[347184156,1735554644124,-500.0,0.00013698,2]
[347184157,1735554644133,-500.0,0.00013698,2]
[347184158,1735554644143,-524.17809823,0.00013698,2]
[347184159,1735554644152,-500.0,0.00013698,2]
[347184160,1735554644162,-500.0,0.00013698,2]
[347184161,1735554644171,-1235.09,0.00013698,2]
[347184162,1735554644180,-500.0,0.00013698,2]
[347184163,1735554644189,-961.58,0.00013698,2]
[347184164,1735554644200,-500.0,0.00013698,2]
[347184165,1735554644209,-789.39,0.00013698,2]
[347184166,1735554644218,-1420.5,0.00013698,2]
[347184167,1735554644227,-500.0,0.00013698,2]
[347184168,1735554644237,-1220.94,0.00013698,2]
[347184169,1735554644246,-700.0,0.00013698,2]
[347184170,1735554644256,-1334.12,0.00013698,2]
[347184171,1735554644265,-15520.84,0.00013698,2]
[347184172,1735554644274,-1799.96,0.00013698,2]
[347184173,1735554644283,-3118.65,0.00013698,2]
[347184174,1735554644293,-948.01,0.00013698,2]
[347184175,1735554644302,-500.0,0.00013698,2]
[347184176,1735554644311,-500.0,0.00013698,2]
[347184177,1735554644321,-655.39,0.00013698,2]
[347184178,1735554644330,-500.0,0.00013698,2]
[347184179,1735554644339,-1481.38,0.00013698,2]
[347184180,1735554644348,-2122.08,0.00013698,2]
[347184181,1735554644357,-500.0,0.00013698,2]
[347184182,1735554644366,-695.05,0.00013698,2]
[347184183,1735554644375,-1130.97,0.00013698,2]
[347184184,1735554644384,-500.0,0.00013698,2]
[347184185,1735554644393,-964.77,0.00013698,2]
[347184186,1735554644402,-2743.83,0.00013698,2]
[347184187,1735554644412,-995.84,0.00013698,2]
[347184188,1735554644421,-500.0,0.00013698,2]
[347184189,1735554644431,-1294.06,0.00013698,2]
[347184190,1735554644440,-500.0,0.00013698,2]
[347184191,1735554644449,-256.600673,0.00013698,2]
[347184192,1735554644458,-1717.36,0.00013698,2]
[347184193,1735554644468,-504.19,0.00013698,2]
[347184194,1735554644477,-500.0,0.00013698,2]
[347184195,1735554644487,-1429.45,0.00013698,2]
[347184196,1735554644496,-500.0,0.00013698,2]
[347184197,1735554644505,-500.0,0.00013698,2]
[347184198,1735554644514,-500.0,0.00013698,2]
[347184199,1735554644523,-500.0,0.00013698,2]
[347184200,1735554644532,-3809.03,0.00013698,2]
[347184201,1735554644542,-1021.02,0.00013698,2]
[347184202,1735554644551,-500.0,0.00013698,2]
[347184203,1735554644561,-500.0,0.00013698,2]
[347184204,1735554644570,-500.0,0.00013698,2]
[347184205,1735554644579,-3469.31,0.00013698,2]
[347184206,1735554644588,-2701.33,0.00013698,2]
[347184207,1735554644597,-788.38,0.00013698,2]
[347184208,1735554644606,-500.0,0.00013698,2]
[347184209,1735554644616,-2078.6,0.00013698,2]
[347184210,1735554644625,-777.08,0.00013698,2]
[347184211,1735554644635,-529.45,0.00013698,2]
[347184212,1735554644644,-500.0,0.00013698,2]
[347184213,1735554644653,-3390.93,0.00013698,2]
[347184214,1735554644662,-999.37,0.00013698,2]
[347184215,1735554644672,-500.0,0.00013698,2]
[347184216,1735554644681,-500.0,0.00013698,2]
[347184217,1735554644691,-838.45,0.00013698,2]
[347184218,1735554644701,-500.0,0.00013698,2]
[347184219,1735554644710,-500.0,0.00013698,2]
[347184220,1735554644719,-500.0,0.00013698,2]
[347184221,1735554644727,-565.11,0.00013698,2]
[347184222,1735554644737,-824.29,0.00013698,2]
[347184223,1735554644747,-3116.51,0.00013698,2]
[347184224,1735554644756,-500.0,0.00013698,2]
[347184225,1735554644766,-517.12409724,0.00013698,2]
[347184226,1735554644776,-2085.66,0.00013698,2]
[347184227,1735554644786,-1158.25,0.00013698,2]
[347184228,1735554644795,-555.14,0.00013698,2]
[347184229,1735554644805,-1664.6,0.00013698,2]
[347184230,1735554644816,-7960.63,0.00013698,2]
[347184231,1735554644826,-4913.88,0.00013698,2]
[347184232,1735554644835,-826.92,0.00013698,2]
[347184233,1735554644844,-3550.08,0.00013698,2]
[347184234,1735554644854,-4923.98,0.00013698,2]
[347184235,1735554644863,-500.0,0.00013698,2]
[347184236,1735554644873,-1277.48,0.00013698,2]
[347184237,1735554644882,-1945.05,0.00013698,2]
[347184238,1735554644892,-1076.9,0.00013698,2]
[347184239,1735554644901,-2958.04,0.00013698,2]
[347184240,1735554644910,-1526.0,0.00013698,2]
[347184241,1735554644920,-867.36,0.00013698,2]
[347184242,1735554644929,-503.90203483,0.00013698,2]
[347184243,1735554644938,-1785.33,0.00013698,2]
[347184244,1735554644948,-500.0,0.00013698,2]
[347184245,1735554644957,-873.64,0.00013698,2]
[347184246,1735554644967,-3634.37,0.00013698,2]
[347184247,1735554644976,-902.97,0.00013698,2]
[347184248,1735554644985,-1948.24,0.00013698,2]
[347184249,1735554644994,-500.0,0.00013698,2]
[347184250,1735554645004,-838.43,0.00013698,2]
[347184251,1735554645013,-4406.04,0.00013698,2]
[347184252,1735554645022,-1262.2,0.00013698,2]
[347184253,1735554645031,-2536.67,0.00013698,2]
[347184254,1735554645041,-174.813099,0.00013698,2]
[347184255,1735554645050,-154.455449,0.00013698,2]
[347184256,1735554645059,-1619.44,0.00013698,2]
[347184257,1735554645068,-154.085996,0.00013698,2]
[347184258,1735554645077,-3415.04,0.00013698,2]
[347184259,1735554645087,-500.0,0.00013698,2]
[347184260,1735554645100,-500.0,0.00013698,2]
[347184261,1735554645109,-1621.07,0.00013698,2]
[347184262,1735554645119,-24680.01,0.00013698,2]
[347184263,1735554645128,-500.0,0.00013698,2]
[347184264,1735554645139,-500.0,0.00013698,2]
[347184265,1735554645148,-191.848991,0.00013698,2]
[347184266,1735554645157,-500.0,0.00013698,2]
[347184267,1735554645167,-3369.5,0.00013698,2]
[347184268,1735554645177,-1329.52,0.00013698,2]
[347184269,1735554645188,-8051.77,0.00013698,2]
[347184270,1735554645197,-21241.19,0.00013698,2]
[347184271,1735554645208,-500.0,0.00013698,2]
[347184272,1735554645217,-500.0,0.00013698,2]
[347184273,1735554645226,-818.37,0.00013698,2]
[347184274,1735554645235,-2962.92,0.00013698,2]
[347184275,1735554645244,-900.18,0.00013698,2]
[347184276,1735554645254,-2005.67,0.00013698,2]
[347184277,1735554645262,-503.1254695,0.00013698,2]
[347184278,1735554645271,-7841.0,0.00013698,2]
[347184279,1735554645281,-922.91,0.00013698,2]
[347184280,1735554645290,-500.0,0.00013698,2]
[347184281,1735554645299,-500.0,0.00013698,2]
[347184282,1735554645308,-4683.43,0.00013698,2]
[347184283,1735554645318,-1725.02,0.00013698,2]
[347184284,1735554645327,-851.58,0.00013698,2]
[347184285,1735554645337,-1737.99,0.00013698,2]
[347184286,1735554645346,-1371.79,0.00013698,2]
[347184287,1735554645356,-501.49338005,0.00013698,2]
[347184288,1735554645365,-2087.39,0.00013698,2]
[347184289,1735554645374,-908.23,0.00013698,2]
[347184290,1735554645384,-1034.9,0.00013698,2]
[347184291,1735554645394,-500.0,0.00013698,2]
[347184292,1735554645403,-500.0,0.00013698,2]
[347184293,1735554645413,-500.0,0.00013698,2]
[347184294,1735554645585,-465.68456267,0.00013698,2]
[347184295,1735554645595,-1354.54,0.00013698,2]
[347184296,1735554645605,-500.54854985,0.00013698,2]
[347184297,1735554645615,-500.0,0.00013698,2]
[347184298,1735554645625,-500.0,0.00013698,2]
[347184299,1735554645635,-5139.4,0.00013698,2]
[347184300,1735554645645,-1765.84,0.00013698,2]
[347184301,1735554645655,-3255.81,0.00013698,2]
[347184302,1735554645664,-500.0,0.00013698,2]
[347184303,1735554645673,-500.0,0.00013698,2]
[347184304,1735554645683,-3980.02,0.00013698,2]
[347184305,1735554645693,-500.0,0.00013698,2]
[347184306,1735554645705,-2612.63,0.00013698,2]
[347184307,1735554645714,-1725.59,0.00013698,2]
[347184308,1735554645723,-500.0,0.00013698,2]
[347184309,1735554645733,-1895.75,0.00013698,2]
[347184310,1735554645742,-500.0,0.00013698,2]
[347184311,1735554645751,-879.99,0.00013698,2]
[347184312,1735554645760,-659.37,0.00013698,2]
[347184313,1735554645770,-3869.8,0.00013698,2]
[347184314,1735554645780,-7283.26,0.00013698,2]
[347184315,1735554645789,-538.35,0.00013698,2]
[347184316,1735554645799,-500.0,0.00013698,2]
[347184317,1735554645809,-1879.64,0.00013698,2]
[347184318,1735554645819,-594.06,0.00013698,2]
[347184319,1735554645829,-2083.66,0.00013698,2]
[347184320,1735554645838,-173.415893,0.00013698,2]
[347184321,1735554645848,-1245.34,0.00013698,2]
[347184322,1735554645857,-1437.99,0.00013698,2]
[347184323,1735554645867,-1874.96,0.00013698,2]
[347184324,1735554645876,-4047.83,0.00013698,2]
[347184325,1735554645886,-500.0,0.00013698,2]
[347184326,1735554645895,-2434.76,0.00013698,2]
[347184327,1735554645905,-150.748465,0.00013698,2]
[347184328,1735554645915,-2910.83,0.00013698,2]
[347184329,1735554645924,-3415.24,0.00013698,2]
[347184330,1735554645933,-500.0,0.00013698,2]
[347184331,1735554645943,-500.0,0.00013698,2]
[347184332,1735554645953,-2358.95,0.00013698,2]
[347184333,1735554645963,-152.71611,0.00013698,2]
[347184334,1735554645973,-1380.68,0.00013698,2]
[347184335,1735554645982,-500.0,0.00013698,2]
[347184336,1735554645992,-500.0,0.00013698,2]
[347184337,1735554646002,-3932.53,0.00013698,2]
[347184338,1735554646012,-500.0,0.00013698,2]
[347184339,1735554646022,-2451.98,0.00013698,2]
[347184340,1735554646031,-887.39,0.00013698,2]
[347184341,1735554646040,-500.0,0.00013698,2]
[347184342,1735554646050,-500.0,0.00013698,2]
[347184343,1735554646060,-2806.59,0.00013698,2]
[347184344,1735554646070,-5043.23,0.00013698,2]
[347184345,1735554646079,-1630.29,0.00013698,2]
[347184346,1735554646088,-500.0,0.00013698,2]
[347184347,1735554646100,-1907.3,0.00013698,2]
[347184348,1735554646110,-1803.4,0.00013698,2]
[347184349,1735554646119,-2710.39,0.00013698,2]
[347184350,1735554646129,-503.32372118,0.00013698,2]
[347184351,1735554646139,-500.0,0.00013698,2]
[347184352,1735554646148,-500.0,0.00013698,2]
[347184353,1735554646157,-697.826531,0.00013698,2]
[347184354,1735554646167,-578.16,0.00013698,2]
[347184355,1735554646176,-500.0,0.00013698,2]
[347184356,1735554646186,-3063.52,0.00013698,2]
[347184357,1735554646196,-15410.93,0.00013698,2]
[347184358,1735554646206,-500.0,0.00013698,2]
[347184359,1735554646215,-1315.44,0.00013698,2]
[347184360,1735554646224,-778.96,0.00013698,2]
[347184361,1735554646234,-772.53,0.00013698,2]
[347184362,1735554646243,-500.0,0.00013698,2]
[347184363,1735554646252,-2023.47,0.00013698,2]
[347184364,1735554646261,-500.0,0.00013698,2]
[347184365,1735554646271,-10853.58,0.00013698,2]
[347184366,1735554646280,-520.92959261,0.00013698,2]
[347184367,1735554646289,-1018.75,0.00013698,2]
[347184368,1735554646298,-1539.27,0.00013698,2]
[347184369,1735554646307,-1421.06,0.00013698,2]
[347184370,1735554646316,-4226.36,0.00013698,2]
[347184371,1735554646326,-1661.62,0.00013698,2]